Cogmind - Beta 11.1 @@@ ROGUE MODE // 2022.06.03 @ 08:29:52 Player: Demise Result: Destroyed by as-48501 with Assembled F-torch Performance ------------- Evolutions (0) 0 Regions Visited (2) 400 Robots Destroyed (23) 115 Value Destroyed (471) 471 Prototype IDs (4) 80 Alien Tech Used (0) 0 Bonus (-49) -49 TOTAL SCORE: 1017 Bonus ------- Friendly Fire -49 Cogmind --------- Core Integrity 0/250 Matter 229/300 Energy 250/250 System Corruption 6% Temperature Cool (20) Movement Core (850) Ox16 Location -10/Mines Parts ------- > --- POWER (1) -------- Ion Engine > --- PROPULSION (2) --- (None) > --- UTILITY (2) ------ High-capacity Storage Unit Utility Shielding > --- WEAPON (2) ------- Light Assault Rifle Grenade Launcher > --- INVENTORY (20) --- Light Ion Engine Wheel Wheel Wheel Wheel Sensor Array Signal Interpreter Seismic Detector Targeting Computer Small Laser Light Assault Rifle Light Assault Rifle Light Cannon Grenade Launcher Datajack Peak State ------------ > --- POWER ------------ Ion Engine > --- PROPULSION ------- Compact Wheel Compact Wheel > --- UTILITY ---------- High-capacity Storage Unit Seismic Detector > --- WEAPON ----------- Light Assault Rifle Light Assault Rifle > --- INVENTORY -------- Light Ion Engine Wheel Wheel Wheel Wheel Medium Storage Unit Targeting Computer Light Cannon Grenade Launcher Datajack [Rating: 8] Favorites ----------- Power Ion Engine Engine Ion Engine Propulsion Compact Wheel Wheel Compact Wheel Utility Seismic Detector Device Seismic Detector Storage Small Storage Unit Protection Utility Shielding Weapon Light Assault Rifle Energy Gun Small Laser Ballistic Gun Light Assault Rifle Launcher Grenade Launcher Build | -11 -10 -10 ------- Run | Scr Mat Min Slots Evolved . | . . . Power . | . . . Propulsion . | . . . Utility . | . . . Weapon . | . . . Parts Attached 29 | 7 21 1 Power 4 | . 4 . Engine 4 | . 4 . Core . | . . . Reactor . | . . . Propulsion 3 | 2 1 . Treads . | . . . Leg . | . . . Wheel 3 | 2 1 . Hover . | . . . Flight . | . . . Utility 8 | 3 5 . Device 4 | 2 2 . Storage 3 | 1 2 . Processor . | . . . Hackware . | . . . Protection 1 | . 1 . Artifact . | . . . Weapon 14 | 2 11 1 Energy Gun 1 | . 1 . Energy Cannon . | . . . Ballistic Gun 11 | 2 9 . Ballistic Cannon . | . . . Launcher 2 | . 1 1 Special Weapon . | . . . Impact Weapon . | . . . Slashing Weapon . | . . . Piercing Weapon . | . . . Special Melee Weapon . | . . . Unidentified Prototypes . | . . . Parts Lost 5 | . 3 2 Power 1 | . 1 . Propulsion 2 | . . 2 Utility . | . . . Weapon 2 | . 2 . Highest Loss Streak 3 | . 3 2 To Critical Strikes . | . . . Average Slot Usage (%) 93 | . 93 71 Engine 9 | . 9 14 Wheel 27 | . 27 . Device 12 | . 12 . Storage 14 | . 14 14 Energy Gun 2 | . 2 . Ballistic Gun 23 | . 23 14 Launcher 1 | . 1 14 Naked Turns . | . . . Heaviest Build 48 | 9 48 . Greatest Support 32 | 32 32 . Greatest Overweight (x) 1 | . 1 . Average Overweight (x) . | . . . Largest Inventory Capacity 20 | 8 20 20 Average Capacity 11 | 7 12 20 Most Carried 15 | 8 15 15 Average Carried 9 | 3 9 15 Final Capacity 20 | 8 20 20 Final Carried 15 | 8 15 15 Class Distribution -------------------- 100% | Mutant Dominant Class ---------------- Mutant | -10/Materials Mutant | -10/Mines Resources | -11 -10 -10 ----------- Run | Scr Mat Min Matter Collected 697 | 338 359 . Remotely 233 | 233 . . Salvage Created 692 | 174 459 59 Parts 46 | 18 23 5 Haulers Intercepted . | . . . Recyclers Shooed . | . . . Parts Field Recycled . | . . . Retrieved Matter . | . . . Parts Self-Destructed . | . . . Prevented . | . . . Kills | -11 -10 -10 ------- Run | Scr Mat Min Combat Hostiles Destroyed 20 | . 10 10 Guns 10 | . 10 . AOE 10 | . . 10 Classes Destroyed 7 | 3 2 2 Worker 2 | 2 . . Tunneler 5 | 5 . . Recycler 1 | 1 . . Watcher 2 | . 2 . Swarmer 3 | . . 3 Grunt 10 | . 10 . Assembled 7 | . . 7 Best Kill Streak 10 | 6 5 10 Combat Bots Only 10 | . 5 10 Max Kills in Single Turn 4 | 1 1 4 Gunslinging . | . . . Exploded 4 | . . 4 Melee . | . . . Uniques/NPCs Destroyed . | . . . Combat | -11 -10 -10 -------- Run | Scr Mat Min Damage Taken 842 | . 602 240 Core 260 | . 195 65 Absorbed by Shields . | . . . Redirected to Shielding 8 | . 3 5 Regen/Repaired (Parts) 62 | . 62 . Core Remaining (%) 100 | 100 . . Volleys Fired 78 | 17 58 3 Largest 2 | 2 2 1 Hottest 60 | 40 60 30 Shots Fired 149 | 34 112 3 Gun 143 | 34 109 . Cannon . | . . . Launcher 6 | . 3 3 Special . | . . . Kinetic 131 | 34 97 . Thermal 12 | . 12 . Explosive 6 | . 3 3 Electromagnetic . | . . . Robot Hit Streak 8 | 8 8 . Robot Miss Streak 4 | 2 4 . Penetration Max . | . . . Secondary Targets 3 | . 3 . Max Gunslinging Chain 1 | . 1 . Shots Hit Robots 84 | 21 63 . Core Hits 61 | 9 32 20 Critical Kills . | . . . Critical Parts Destroyed . | . . . Critical Strikes . | . . . Melee Attacks . | . . . Impact . | . . . Slashing . | . . . Piercing . | . . . Sneak Attacks . | . . . Combat Hostiles . | . . . Follow-up Attacks . | . . . Damage Inflicted 1595 | 251 683 661 Guns 934 | 251 683 . Cannons . | . . . Explosions 661 | . . 661 Melee . | . . . Ramming . | . . . Kinetic 864 | 251 613 . Thermal 70 | . 70 . Explosive 661 | . . 661 Electromagnetic . | . . . Impact . | . . . Slashing . | . . . Piercing . | . . . Highest Corruption 6 | . . 6 Average Corruption 6 | . . 6 Corruption Purged . | . . . Corruption Blocked . | . . . Overload Shots . | . . . Overflow Damage 13 | . . 13 Projectiles . | . . . Explosions 13 | . . 13 Melee . | . . . Knockbacks . | . . . Impact . | . . . Kinetic . | . . . Secondary . | . . . Self-Inflicted Damage 74 | . . 74 Shots 3 | . . 3 Rammed . | . . . Targets Rammed . | . . . Kicked . | . . . Crushed . | . . . Highest Temperature 20 | . 20 . Average Temperature 8 | . 8 . Received Heat Transfer 200 | . 180 20 Siege Activations . | . . . Robots Corrupted . | . . . Combat Hostiles . | . . . Parts Fried . | . . . Impact Corruptions . | . . . Robots Melted . | . . . Combat Hostiles . | . . . Parts Melted . | . . . Heat Transferred 150 | . 150 . Parts Sabotaged . | . . . Parts Stolen . | . . . Parts Stripped . | . . . Power Chain Reactions . | . . . Missiles Intercepted . | . . . Alert | -11 -10 -10 ------- Run | Scr Mat Min Peak Influence 245 | 40 245 203 Initial 76 | . 26 76 Average 127 | 16 138 156 Maximum Alert Level 1 | . 1 1 Low Security (%) 78 | 100 76 87 Level 1 21 | . 23 12 Level 2 . | . . . Level 3 . | . . . Level 4 . | . . . Level 5 . | . . . High Security . | . . . Max Security . | . . . Squads Dispatched 4 | . 4 . Investigation 4 | . 4 . Extermination . | . . . Reinforcement . | . . . Assault . | . . . Garrison . | . . . Intercept . | . . . Searches Triggered . | . . . Construction Impeded . | . . . Haulers Reinforced . | . . . Active Scanning Responses . | . . . Cargo Convoy Interrupts . | . . . Stealth | -11 -10 -10 --------- Run | Scr Mat Min Distress Signals 2 | . 2 . Communications Jammed . | . . . Distress Signals . | . . . Times Spotted 45 | . 22 23 Peak Tracking Total 23 | . 4 23 Tactical Retreats 1 | . 1 . Traps | -11 -10 -10 ------- Run | Scr Mat Min Traps Triggered 3 | . 3 . Indirectly . | . . . Trap Hack Attempts . | . . . Triggered . | . . . Disarmed . | . . . Reprogrammed . | . . . Reused . | . . . Traps Extracted . | . . . Installed . | . . . Triggered . | . . . Machines | -11 -10 -10 ---------- Run | Scr Mat Min Machines Disabled . | . . . Max in Single Turn . | . . . Machines Sabotaged . | . . . Garrisons Compromised . | . . . Overloaded Fab Kills . | . . . Hacking | -11 -10 -10 --------- Run | Scr Mat Min Machines Accessed 11 | . 11 . Terminals 8 | . 8 . Fabricators . | . . . Repair Stations 1 | . 1 . Recycling Units 2 | . 2 . Scanalyzers . | . . . Garrison Access . | . . . Total Hacks 43 | . 43 . Successful 32 | . 32 . Failed 11 | . 11 . Catastrophic 1 | . 1 . Database Lockouts . | . . . Manual 30 | . 30 . Terminals 33 | . 33 . Fabricators . | . . . Repair Stations 6 | . 6 . Recycling Units 4 | . 4 . Scanalyzers . | . . . Garrison Access . | . . . Terminal Hacks 12 | . 12 . Part Schematic 3 | . 3 . Robot Analysis 2 | . 2 . Prototype ID Bank 2 | . 2 . Level Access Points 1 | . 1 . Branch Access Points 1 | . 1 . Terminal Index 1 | . 1 . Locate Traps 1 | . 1 . Hauler Manifests 1 | . 1 . Fabricator Hacks . | . . . Repair Station Hacks 6 | . 6 . Scan Component 3 | . 3 . Repair 3 | . 3 . Recycling Unit Hacks 2 | . 2 . Retrieve Components 2 | . 2 . Scanalyzer . | . . . Garrison Access Hacks . | . . . Unauthorized Hacks 12 | . 12 . Terminals 10 | . 10 . Track 1 | . 1 . Botnet 8 | . 8 . Operators 1 | . 1 . Fabricators . | . . . Repair Stations . | . . . Recycling Units 2 | . 2 . Tunnel 2 | . 2 . Scanalyzers . | . . . Garrison Access . | . . . Data Cores Recovered . | . . . Used . | . . . Hacking Detections 9 | . 9 . Full Trace Events 2 | . 2 . Feedback Events . | . . . Feedback Blocked . | . . . Robot Schematics Acquired . | . . . Robots Built . | . . . Authchips . | . . . Time . | . . . Total Robot Build Rating . | . . . Part Schematics Acquired 3 | . 3 . Parts Built . | . . . Authchips . | . . . Time . | . . . Total Part Build Rating . | . . . Parts Repaired 3 | . 3 . Time 78 | . 78 . Parts Recycled . | . . . Recycled Matter . | . . . Retrieved Matter . | . . . Retrieved Components 5 | . 5 . Parts Scanalyzed . | . . . Part Schematics Acquired . | . . . Parts Damaged . | . . . Bothacking | -11 -10 -10 ------------ Run | Scr Mat Min Used RIF Installer . | . . . Robots Hacked . | . . . Non-combat . | . . . Combat . | . . . Robot Hacks Applied . | . . . Relay Couplers Released . | . . . Fabnet Peak Effective % . | . . . Robots Rewired . | . . . Allies Hacked . | . . . Hacks Repelled . | . . . Allies | -11 -10 -10 -------- Run | Scr Mat Min Total Allies . | . . . Largest Group . | . . . Highest-Rated Group . | . . . Highest-Rated Ally . | . . . Total Orders . | . . . Ally Attacks . | . . . Total Damage . | . . . Kills . | . . . Allies Corrupted . | . . . Allies Melted . | . . . Intel | -11 -10 -10 ------- Run | Scr Mat Min Robot Analysis Total 2 | . 2 . Derelict Logs Recovered . | . . . Drone Launches . | . . . Drone Recoveries . | . . . Exploration | -11 -10 -10 ------------- Run | Scr Mat Min Turns Passed 1279 | 119 1152 8 Spaces Moved 853 | 57 796 . Core 9 | 9 . . Treads . | . . . Legs . | . . . Wheels 844 | 48 796 . Hover . | . . . Flight . | . . . Fastest Speed 50 | 50 100 . Average Speed 103 | 92 104 . Slowest Speed 115 | 100 115 . Overloaded Moves . | . . . Propulsion Burnouts . | . . . Robots Hopped . | . . . Cave-ins Triggered . | . . . Exploration Rate (%) 35 | 3 99 4 Regions Visited 2 Branch Regions 1 Pre-discovered Areas 2 | . 2 . Known Exits Taken 1 | . 1 . Unknown Exits Taken 1 | 1 . . Scrap Searched . | . . . Spaces Dug 25 | . 19 6 Terrain Destroyed 52 | . 28 24 Melee . | . . . Projectile . | . . . AOE 52 | . 28 24 Terrain Rammed . | . . . Walls Destroyed . | . . . Machines Disabled . | . . . Actions | -11 -10 -10 --------- Run | Scr Mat Min Total 1115 | 95 1016 4 Wait 119 | . 119 . Move 851 | 56 795 . Hop . | . . . Pick Up 23 | 11 12 . Fast Attach 18 | 6 12 . Attach 2 | 1 1 . Detach 1 | 1 . . Swap 9 | . 8 1 Drop 14 | 3 11 . Fire 78 | 17 58 3 Melee . | . . . Ram . | . . . Kick . | . . . Crush . | . . . Escape Stasis . | . . . Rewire . | . . . Trap . | . . . Miscellaneous . | . . . Route ------- -11/Scrapyard -10/Materials (discovered 4 exits: *Mat x3 / *Min) -10/Mines History --------- Turn | Location | Event 9 | -11/Scrapyard | Discovered new exit (range 15) 120 | -11/Scrapyard | Entered Materials 312 | -10/Materials | Build established: Mutant 382 | -10/Materials | Identified exit to Mines 451 | -10/Materials | Core integrity fell below 50% 481 | -10/Materials | Lost 3 parts (1p2w) 650 | -10/Materials | Identified exit to Materials 1000 | -10/Materials | Repaired Lgt. Assault Rifle 1027 | -10/Materials | Repaired Lgt. Assault Rifle 1055 | -10/Materials | Repaired Com. Wheel 1272 | -10/Materials | Entered Mines 1273 | -10/Mines | Assembled infested the area 1274 | -10/Mines | Core integrity fell below 20% 1278 | -10/Mines | Assisted by a Guerilla fighting off Assembled 1280 | -10/Mines | Destroyed by as-48501 with Assembled F-torch Last Messages --------------- 01273_ ALERT: Infestation in the mines, dispatching Demolisher response squad. 01274_ S-10 Pest destroyed. 01276_ RQ-LIS(h): "I'll hold them off! Go on ahead or try to find another way!" 01276_ as-63057 suffers critical hit (Destroy). 01276_ as-63057 knocked back. 01276_ as-20854 destroyed. 01276_ as-63057 destroyed. 01276_ as-82575 destroyed. 01276_ as-27267 destroyed. 01277_ HV Slug penetrates Wall. 01278_ A derelict emerges from the shadows: "You need to get out of here! I've been tracking a group of Assembled to figure out where they're coming from, and they're closing on this area, come on!" 01278_ Destroyed Asb. Hover Unit. 01278_ Destroyed Phase Shifter. 01278_ as-77520 destroyed. 01278_ as-21483 destroyed. 01278_ as-89237 destroyed. 01279_ Com. Wheel destroyed. 01279_ System corrupted by crushing effect (+3). Map ----- +----------------------------------------------------+ | ?????????????????????????????????????????? | | ?????????????????????????????????????????? | | ?????????????????????????????????????????? | | ?????????????????????????????????????????? | | ?????????????????????????????????????????? | | ?????????????????????????????????????????? | | ?????????????????????????????????????????? | | ?????????????????????????????????????????? | | ?????????????????????????????????????????? | | ?????????????????????????????????????????? | | ????????????????????????? #?????????????? | | ?????????????????????????